Cogmind - Beta 15 @@@ ROGUE MODE // 2025.06.29 @ 01:12:38 Player: Florist Result: Self-destructed Performance ------------- Evolutions (1) 500 Regions Visited (2) 400 Robots Destroyed (23) 115 Value Destroyed (526) 526 Prototype IDs (0) 0 Alien Tech Used (0) 0 Bonus (0) 0 TOTAL SCORE: 1541 Bonus ------- None Cogmind --------- Core Integrity 23/400 Matter 300/300 Energy 100/100 System Corruption 0% Temperature Cool (0) Movement Core (1350) Ox26 Location -9/Materials Parts ------- > --- POWER (1) -------- (None) > --- PROPULSION (4) --- (None) > --- UTILITY (2) ------ Huge Storage Unit > --- WEAPON (2) ------- (None) > --- INVENTORY (25) --- Structural Scanner Seismic Detector Seismic Detector Light Armor Plating Peak State ------------ > --- POWER ------------ Ion Engine > --- PROPULSION ------- Light Treads Light Treads > --- UTILITY ---------- Heat Sink Huge Storage Unit > --- WEAPON ----------- Medium Laser Small Laser > --- INVENTORY -------- Ion Engine Wheel Wheel Compact Wheel Structural Scanner Seismic Detector Seismic Detector Light Armor Plating Light Armor Plating Grenade Launcher [Rating: 8] Favorites ----------- Power Ion Engine Engine Ion Engine Propulsion Light Treads Treads Light Treads Leg Aluminum Leg Wheel Wheel Utility Huge Storage Unit Device Seismic Detector Storage Huge Storage Unit Protection Light Armor Plating Weapon Small Laser Energy Gun Small Laser Launcher Grenade Launcher Special Weapon Welding Torch Slashing Weapon Mining Claw Build | -11 -10 -9 ------- Run | Yrd Mat Mat Slots Evolved 2 | . . 2 Power . | . . . Propulsion 2 | . . 2 Utility . | . . . Weapon . | . . . Parts Attached 22 | 7 12 3 Power 2 | 1 1 . Engine 2 | 1 1 . Core . | . . . Reactor . | . . . Propulsion 7 | 2 4 1 Treads 2 | 2 . . Leg 2 | . 2 . Wheel 3 | . 2 1 Hover . | . . . Flight . | . . . Utility 5 | 2 2 1 Device 2 | 1 1 . Storage 2 | 1 1 . Processor . | . . . Hackware . | . . . Protection 1 | . . 1 Artifact . | . . . Weapon 8 | 2 5 1 Energy Gun 5 | 2 3 . Energy Cannon . | . . . Ballistic Gun . | . . . Ballistic Cannon . | . . . Launcher 1 | . 1 . Special Weapon 1 | . 1 . Impact Weapon . | . . . Slashing Weapon 1 | . . 1 Piercing Weapon . | . . . Special Melee Weapon . | . . . Unidentified Prototypes . | . . . Parts Lost 17 | . 8 9 Power 2 | . 1 1 Propulsion 5 | . 2 3 Utility 2 | . 1 1 Weapon 8 | . 4 4 Highest Loss Streak 9 | . 5 9 To Critical Strikes . | . . . Average Backups 6 | 2 7 5 Power . | . . . Propulsion 1 | 1 2 . Utility 3 | . 3 4 Weapon . | . . 1 Tool/Special . | . . . Unused Backups 3 | . . 3 Power . | . . . Propulsion . | . . . Utility 3 | . . 3 Weapon . | . . . Tool/Special . | . . . Average Slot Usage (%) 82 | . 86 55 Engine 10 | . 11 6 Treads 14 | . 16 . Wheel 11 | . 10 16 Device 7 | . 8 . Storage 13 | . 14 11 Energy Gun 22 | . 23 11 Peak Build Rating 8 | 7 8 8 Average Rating 5 | 5 6 4 On Entrance 4 | . 7 6 Naked Turns . | . . . Heaviest Build 91 | 14 89 91 Greatest Support 40 | 40 40 36 Greatest Overweight (x) 27 | . 8 27 Average Overweight (x) 2 | . 2 4 Largest Inventory Capacity 25 | 8 25 25 Average Capacity 19 | 7 22 25 Most Carried 10 | 5 10 7 Average Carried 6 | 2 7 5 Final Capacity 25 | 8 25 25 Final Carried 8 | 5 8 4 Class Distribution -------------------- 100% | Mutant Dominant Class ---------------- Mutant | -10/Materials Mutant | -9/Materials Resources | -11 -10 -9 ----------- Run | Yrd Mat Mat Matter Collected 444 | 270 144 30 Remotely . | . . . Salvage Created 779 | 134 570 75 Parts 46 | 12 33 1 Haulers Intercepted 1 | . 1 . Recyclers Shooed 1 | . 1 . Parts Field Recycled . | . . . Retrieved Matter . | . . . Parts Self-Destructed . | . . . Prevented . | . . . Kills | -11 -10 -9 ------- Run | Yrd Mat Mat Combat Hostiles Destroyed 12 | . 10 2 Melee 1 | . . 1 Guns 8 | . 8 . AOE 1 | . 1 . Classes Destroyed 8 | 2 5 1 Builder 2 | . 2 . Tunneler 4 | 4 . . Hauler 1 | . 1 . Recycler 2 | 1 1 . Operator 1 | . 1 . Watcher 1 | . 1 . Grunt 11 | . 10 1 Sentry 1 | . . 1 Best Kill Streak 4 | 4 4 2 Combat Bots Only 4 | . 4 2 Max Kills in Single Turn 1 | 1 1 1 Gunslinging . | . . . Exploded 1 | . 1 . Melee 1 | . . 1 Uniques/NPCs Destroyed . | . . . Combat | -11 -10 -9 -------- Run | Yrd Mat Mat Hostile Shots Fired 178 | . 97 81 Missed 35 | . 21 14 Hits 143 | . 76 67 Projectile 143 | . 76 67 Damage Taken 1905 | . 950 955 Core 581 | . 204 377 Absorbed by Shields . | . . . Core Remaining (%) 59 | 100 18 . Volleys Fired 103 | 13 80 10 Largest 2 | 2 2 2 Hottest 90 | 90 90 90 Shots Fired 171 | 26 130 15 Gun 159 | 26 120 13 Cannon . | . . . Launcher 4 | . 2 2 Special 8 | . 8 . Kinetic . | . . . Thermal 167 | 26 128 13 Explosive 4 | . 2 2 Electromagnetic . | . . . Robot Hit Streak 16 | 4 16 8 Robot Miss Streak 3 | 2 3 1 Penetration Max . | . . . Secondary Targets 1 | . 1 . Max Gunslinging Chain 1 | . 1 . Shots Hit Robots 128 | 14 99 15 Core Hits 41 | 6 30 5 Critical Kills . | . . . Critical Parts Destroyed . | . . . Critical Strikes 2 | 1 1 . Burn 2 | 1 1 . Melee Attacks 3 | . . 3 Impact . | . . . Slashing 3 | . . 3 Piercing . | . . . Sneak Attacks . | . . . Combat Hostiles . | . . . Follow-up Attacks . | . . . Damage Inflicted 1648 | 165 1165 318 Guns 1347 | 165 1036 146 Cannons . | . . . Explosions 233 | . 107 126 Melee 46 | . . 46 Ramming . | . . . Kinetic . | . . . Thermal 1369 | 165 1058 146 Explosive 233 | . 107 126 Electromagnetic . | . . . Impact . | . . . Slashing 46 | . . 46 Piercing . | . . . Highest Corruption 1 | . 1 . Average Corruption 1 | . 1 . Corruption Purged . | . . . Corruption Blocked . | . . . Effects 3 | . 3 . Message Errors 1 | . 1 . Matter Fused 2 | . 2 . Overload Shots . | . . . Overflow Damage 25 | . 16 9 Projectiles . | . . . Explosions 25 | . 16 9 Melee . | . . . Knockbacks . | . . . Impact . | . . . Kinetic . | . . . Secondary . | . . . Self-Inflicted Damage 129 | . 46 83 Shots 4 | . 2 2 Rammed . | . . . Targets Rammed . | . . . Kicked . | . . . Crushed . | . . . Highest Temperature 302 | 120 240 302 Average Temperature 93 | 37 93 174 Received Heat Transfer 831 | . 495 336 Effects 1 | . 1 . Interference 1 | . 1 . Siege Activations . | . . . Martial Activations . | . . . Shielding Activations . | . . . Robots Disrupted . | . . . Combat Hostiles . | . . . Robots Corrupted . | . . . Combat Hostiles . | . . . Parts Fried . | . . . Impact Corruptions . | . . . Robots Melted 2 | . 1 1 Combat Hostiles 2 | . 1 1 Parts Melted 9 | 2 5 2 Heat Transferred 3740 | 508 2836 396 Parts Sabotaged . | . . . Parts Stolen . | . . . Parts Stripped . | . . . Power Chain Reactions . | . . . Alert | -11 -10 -9 ------- Run | Yrd Mat Mat Maximum Alert Level . | . . . Low Security (%) 100 | 100 100 100 Level 1 . | . . . Level 2 . | . . . Level 3 . | . . . Level 4 . | . . . Level 5 . | . . . High Security . | . . . Max Security . | . . . Peak Influence 90 | 10 90 30 Initial 3 | . 3 . Average 25 | 2 33 7 Influence Increases 377 | 25 290 62 Destroy 0b10 Robot/C 240 | . 200 40 Destroy 0b10 Robot/NC 55 | 25 30 . Destroy Leader 54 | . 44 10 Disable Machine 15 | . 15 . Destroy Structure 13 | . 1 12 Influence Decreases 367 | 20 294 53 Entered New Map 3 | . 2 1 Time Decay 242 | 20 212 10 Lost Part 122 | . 80 42 Squads Dispatched 4 | . 3 1 Investigation 2 | . 2 . Extermination . | . . . Reinforcement 2 | . 1 1 Assault . | . . . Garrison . | . . . Intercept . | . . . Searches Triggered . | . . . Construction Impeded . | . . . Haulers Reinforced . | . . . Active Scanning Responses . | . . . Cargo Convoy Interrupts . | . . . Stealth | -11 -10 -9 --------- Run | Yrd Mat Mat Distress Signals 3 | . 3 . Communications Jammed . | . . . Distress Signals . | . . . Times Spotted 22 | . 17 5 Peak Tracking Total 4 | . 3 4 Tactical Retreats . | . . . Traps | -11 -10 -9 ------- Run | Yrd Mat Mat Traps Triggered 2 | . 2 . Indirectly . | . . . Trap Hack Attempts . | . . . Triggered . | . . . Disarmed . | . . . Reprogrammed . | . . . Reused . | . . . Traps Extracted . | . . . Installed . | . . . Triggered . | . . . Machines | -11 -10 -9 ---------- Run | Yrd Mat Mat Machines Disabled 1 | . 1 . Max in Single Turn 1 | . 1 . Machines Repaired . | . . . Machines Dismantled . | . . . Machines Sabotaged . | . . . Overloaded Fab Kills . | . . . Hacking | -11 -10 -9 --------- Run | Yrd Mat Mat Machines Accessed 2 | . 2 . Terminals 1 | . 1 . Fabricators . | . . . Repair Stations . | . . . Recycling Units 1 | . 1 . Scanalyzers . | . . . Garrison Access . | . . . Total Hacks 4 | . 4 . Successful 1 | . 1 . Failed 3 | . 3 . Catastrophic 1 | . 1 . Database Lockouts . | . . . Manual 2 | . 2 . Terminals 2 | . 2 . Fabricators . | . . . Repair Stations . | . . . Recycling Units 2 | . 2 . Scanalyzers . | . . . Garrison Access . | . . . Terminal Hacks 1 | . 1 . Zone Layout 1 | . 1 . Fabricator Hacks . | . . . Repair Station Hacks . | . . . Recycling Unit Hacks . | . . . Scanalyzer . | . . . Garrison Access Hacks . | . . . Unauthorized Hacks . | . . . Terminals . | . . . Fabricators . | . . . Repair Stations . | . . . Recycling Units . | . . . Scanalyzers . | . . . Garrison Access . | . . . Data Cores Recovered . | . . . Used . | . . . Hacking Detections 2 | . 2 . Full Trace Events 1 | . 1 . Feedback Events . | . . . Feedback Blocked . | . . . Robot Schematics Acquired . | . . . Robots Built . | . . . Authchips . | . . . Time . | . . . Total Robot Build Rating . | . . . Part Schematics Acquired . | . . . Parts Built . | . . . Authchips . | . . . Time . | . . . Total Part Build Rating . | . . . Parts Repaired . | . . . Time . | . . . Parts Recycled . | . . . Recycled Matter . | . . . Retrieved Matter . | . . . Retrieved Components . | . . . Parts Scanalyzed . | . . . Part Schematics Acquired . | . . . Parts Damaged . | . . . Bothacking | -11 -10 -9 ------------ Run | Yrd Mat Mat Used RIF Installer . | . . . Robots Hacked . | . . . Non-combat . | . . . Combat . | . . . Robot Hacks Applied . | . . . Relay Couplers Released . | . . . Fabnet Peak Effective % . | . . . Robots Rewired . | . . . Allies Hacked . | . . . Hacks Repelled . | . . . Allies | -11 -10 -9 -------- Run | Yrd Mat Mat Total Allies . | . . . Largest Group . | . . . Highest-Rated Group . | . . . Highest-Rated Ally . | . . . Total Orders . | . . . Ally Attacks . | . . . Total Damage . | . . . Kills . | . . . Allies Corrupted . | . . . Allies Melted . | . . . Intel | -11 -10 -9 ------- Run | Yrd Mat Mat Active Infowar (turns) 237 | 64 173 . Seismic 237 | 64 173 . Robot Analysis Total . | . . . Derelict Logs Recovered . | . . . Drone Launches . | . . . Drone Recoveries . | . . . Exploration | -11 -10 -9 ------------- Run | Yrd Mat Mat Turns Passed 903 | 151 657 95 Spaces Moved 308 | 64 223 21 Core 7 | 5 . 2 Treads 159 | 59 100 . Legs 1 | . 1 . Wheels 141 | . 122 19 Hover . | . . . Flight . | . . . Fastest Speed 50 | 50 140 116 Average Speed 175 | 151 176 238 Slowest Speed 1400 | 160 680 1400 Overloaded Moves . | . . . Propulsion Burnouts . | . . . Robots Hopped . | . . . Potential Cave-ins . | . . . Cave-ins Triggered . | . . . Exploration Rate (%) 16 | 5 40 4 Regions Visited 2 Branch Regions . Pre-discovered Areas . | . . . Known Exits Taken . | . . . Unknown Exits Taken 2 | 1 1 . Scrap Searched . | . . . Spaces Dug . | . . . Terrain Destroyed 14 | . 1 13 Melee . | . . . Projectile . | . . . AOE 14 | . 1 13 Terrain Rammed . | . . . Walls Destroyed . | . . . Machines Disabled . | . . . Actions | -11 -10 -9 --------- Run | Yrd Mat Mat Total 488 | 89 355 44 Wait 35 | . 29 6 Move 306 | 63 222 21 Hop . | . . . Pick Up 12 | 6 6 . Fast Attach 12 | 6 6 . Attach 10 | 1 5 4 Detach 2 | . 2 . Swap 2 | . 2 . Drop 3 | . 3 . Fire 103 | 13 80 10 Melee 3 | . . 3 Ram . | . . . Kick . | . . . Crush . | . . . Escape Stasis . | . . . Rewire . | . . . Trap . | . . . Miscellaneous . | . . . Route ------- -11/Scrapyard -10/Materials -9/Materials (discovered 1 exit: [*Min]) History --------- Turn | Location | Event 3 | -11/Scrapyard | Discovered new exit (range 15) 152 | -11/Scrapyard | Entered Materials 303 | -10/Materials | Build established: Mutant 554 | -10/Materials | Core integrity fell below 50% 580 | -10/Materials | Lost 5 parts (1p2n1u1w) 662 | -10/Materials | Core integrity fell below 20% 680 | -10/Materials | Lost 3 parts (3w) 783 | -10/Materials | Discovered new exit (range 13) 809 | -10/Materials | Entered another Materials area 809 | -9/Materials | Evolved 2 slots: Propulsion x2 832 | -9/Materials | Discovered new exit (range 12) 874 | -9/Materials | Core integrity fell below 50% 897 | -9/Materials | Core integrity fell below 20% 904 | -9/Materials | Self-destructed Last Messages --------------- 00858_ G-34 Mercenary critical meltdown. 00858_ Sml. Laser melted. 00859_ Med. Laser destroyed. 00864_ Lgt. Armor Plating destroyed. 00864_ Destroyed Lgt. Armor Plating. 00864_ Ion Engine destroyed. 00864_ Destroyed Ion Engine. 00864_ Wheel destroyed. 00864_ Destroyed Wheel. 00864_ Com. Wheel destroyed. 00865_ Grenade Launcher destroyed. 00873_ Y-45 Defender destroyed. 00876_ Acquired 30 matter. 00878_ U-05 Engineer builds a Wall. 00882_ U-05 Engineer lays Concrete. 00890_ Mining Claw destroyed. 00891_ U-05 Engineer builds a Wall. 00895_ K-01 Serf collects debris. 00896_ U-05 Engineer builds a Wall. 00903_ U-05 Engineer lays Concrete. Map ----- +----------------------------------------------------+ | ?????????????????????????????????????????????????? | | ?????????????????????????????????????????????????? | | ?????????????????????????????????????????????????? | | ?????????????????????????????????????????????????? | | ?????????????????????????????????????????????????? | | ?????????????????????????????????????????????????? | | ?????????????????????????????????????????????????? | | ?????????????????????????????????????????????????? | | ?????????????????????????????????????????????????? | | ?????????????????????????????????????????????????? | | ?????????????????????????????????????????????????? | | ?????????????????????????????????????????????????? | | ?????????????????????????????????????????????????? | | ?????????????????????????????????????????????????? | | ?????????????????????????????????????????????????? | | ?????????????????????????????????????????????????? | | ?????????????????????????????????????????????????? | | ?????????????????????????????????????????????????? | | ?????????????????????????????????????????????????? | | ?????????????????????????????????????????????????? | | ?????????????????????????????????????????????????? | | ?????????????????????????????????????????????????? | | ???????????????????????##????????????????????????? | | ?????????????????????### #####???????????????????? | | ?????????????????????##### #???????????????????? | | ???????????? ####### u@! ##############??????? | | ???????????? ""% g #??????? | | ???????????? < uT Y #??????? | | ??????????? % #??????? | | ??????????? ####### ##############??????? | | ????????????#+????????# #o# ##???????????????????? | | ??????????????????????T ????????????????????? | | ????????????????????? ???????????????????? | | ????????????????????# #??????????????????? | | ????????????????????# ? #??????????????????? | | ????????????????????# "?" """ #??????????????????? | | ????????????????????#???" """ #??????????????????? | | ???????????????????????"" """ #??????????????????? | | ????????????????????????? ??? #??????????????????? | | ?????????????????????????#????#??????????????????? | | ?????????????????????????????????????????????????? | | | | | | | | | | | | | | | | | | | +----------------------------------------------------+ Best States ------------- Heat Dissipation 35 Energy Generation 10 Energy Capacity 250 Matter Stores 300 Matter Capacity 300 Sight Range 16 Terrain Scan Density 10 Armor Coverage 150 Evasion (%) 40 Recoil Reduction 2 Item Schematics ----------------- None Robot Schematics ------------------ None Fabricated ------------ Nothing Repaired ---------- Nothing Alien Tech Used ----------------- None Achievements -------------- None Challenges ------------ None Game ------ Seed ShadingGreatFragment Manual? 0 Play Time 00:15:01 Cumulative 139.6 hours Start 2025.06.28 @ 22:41:51 End 2025.06.29 @ 01:12:38 Sessions 1 Manual Loads 0 Difficulty Rogue Special Mode None Game No. 141 Rogue 141 Adventurer 0 Explorer 0 Win Type - Total 8 Types 5/0/1/2/0/0/0/0/0/0 Lore% 64 Gallery% 60 Achievement% 57 Wizard Run 0 Options --------- Layout 1 ASCII 0 Keyboard 0 Movement Mouse Keybinds 0 Fullscreen 1 Font 32/SmallcapsGlow Map View 77x35 Zoom Use 0% Tactical HUD 1 Map Filters NONE Filters NONE Steam 1 RUN: 7a267844-d7f1-4de5-961a-8165280abadd